bitfinex-derivatives/quotes_SOLF0:USTF0_20250529
["timestamp","ask_amount","ask_price","bid_price","bid_amount"]
[1748496141866,5.7985,172.4,172.37,5.7994]
[1748496142264,5.7985,172.4,172.36,0.04133412]
[1748496142472,5.7988,172.39,172.36,5.84103412]
[1748496142771,5.7988,172.39,172.36,0.04133412]
[1748496143768,5.7988,172.39,172.36,5.84103412]
[1748496144975,5.7992,172.38,172.36,0.04133412]
[1748496145168,3.23220754,172.37,172.36,0.04133412]
[1748496146473,35.4284,172.38,172.36,0.04133412]
[1748496146671,38.66060754,172.38,172.36,0.04133412]
[1748496146871,5.7994,172.37,172.36,0.04133412]
[1748496151673,5.801,172.33,172.28,31.44]
[1748496152572,0.04267362,172.32,172.28,31.44]
[1748496152777,0.04267362,172.32,172.29,5.84262896]
[1748496154980,0.04267362,172.32,172.3,5.8016]
[1748496155385,0.04267362,172.32,172.29,0.04052896]
[1748496155386,5.84377362,172.32,172.29,0.04052896]
[1748496155582,0.04267362,172.32,172.29,5.84242896]
[1748496155883,0.04267362,172.32,172.29,0.04052896]
[1748496156383,0.04267362,172.32,172.3,5.8015]
[1748496159694,5.84377362,172.32,172.29,5.84262896]
[1748496159992,5.84377362,172.32,172.29,0.04052896]
[1748496160194,5.8015,172.31,172.29,0.04052896]
[1748496160389,5.8015,172.31,172.24,2.0645]
[1748496160390,0.04267362,172.32,172.13,518.68]
[1748496160590,0.04267362,172.32,172.18,37.3629]
[1748496160591,1.9856,172.32,172.18,37.3629]
[1748496160790,5.8024,172.29,172.25,5.8032]
[1748496161389,5.84285913,172.29,172.25,5.84607104]
[1748496161592,5.8025,172.28,172.25,5.84607104]
[1748496162488,5.8031,172.26,172.25,0.04287104]
[1748496173598,5.8029,172.27,172.25,0.04287104]
[1748496175422,5.8031,172.26,172.25,0.04287104]
[1748496177200,5.8043,172.23,172.18,31.38]
[1748496177401,31.4,172.23,172.14,37.2816]
[1748496177597,31.4,172.23,172.18,5.8056]
[1748496177795,5.8047,172.22,172.18,5.8056]
[1748496178107,5.8047,172.22,172.14,37.2816]
[1748496178108,31.4,172.23,172.21,5.8048]
[1748496179509,31.4,172.23,172.22,5.8045]
[1748496179807,0.04360918,172.24,172.2,0.04297898]
[1748496180707,0.04360918,172.24,172.23,5.8041]
[1748496187912,0.04360918,172.24,172.2,0.04297898]
[1748496188506,0.04360918,172.24,172.23,5.8041]
[1748496199323,0.04360918,172.24,172.21,2.0091]
[1748496199619,0.04360918,172.24,172.2,0.04297898]
[1748496199822,5.8042,172.23,172.2,0.04297898]
[1748496200016,3.23661975,172.23,172.2,0.04297898]
[1748496200815,9.04111975,172.23,172.2,0.04297898]
[1748496201323,3.23661975,172.23,172.2,0.04297898]
[1748496201820,3.23661975,172.21,172.2,0.0060193]
[1748496202013,2.0343,172.23,172.2,0.0060193]
[1748496202413,5.8048,172.21,172.2,0.0060193]
[1748496202716,2.0343,172.23,172.2,0.0060193]
[1748496202919,5.8048,172.22,172.2,0.0060193]
[1748496203412,5.8045,172.22,172.2,0.0060193]
[1748496204116,5.8048,172.21,172.2,0.0060193]
[1748496208625,5.806,172.18,172.14,5.8071]
[1748496209223,5.8064,172.17,172.13,5.8075]
[1748496209525,5.8064,172.17,172.1,33.3334]
[1748496209728,0.04121098,172.15,172.12,0.04075629]
[1748496210926,0.04121098,172.15,172.14,5.8072]
[1748496218224,0.04121098,172.15,172.13,5.8074]
[1748496218424,0.04121098,172.15,172.12,0.04075629]
[1748496218629,5.84811098,172.15,172.12,0.04075629]
[1748496219226,5.8073,172.14,172.12,0.04075629]
[1748496220427,37.06811098,172.15,172.12,0.04075629]
[1748496220931,31.26121098,172.15,172.13,5.8072]
[1748496221131,31.26121098,172.15,172.12,0.04075629]
[1748496221528,31.26121098,172.15,172.14,5.8072]
[1748496225128,0.04121098,172.15,172.14,5.8072]
[1748496239955,31.22,172.19,172.18,5.8058]
[1748496240253,33.2543,172.23,172.18,5.8058]
[1748496240452,5.8045,172.22,172.19,5.8054]
[1748496240849,5.84264203,172.22,172.19,5.84314281]
[1748496243353,0.03814203,172.22,172.2,5.8049]
[1748496243556,0.03814203,172.22,172.19,0.03774281]
[1748496244754,0.03814203,172.22,172.21,5.8048]
[1748496253861,5.05922394,172.33,172.19,0.03774281]
[1748496253862,520.10052953,172.37,172.26,5.803]
[1748496254064,31.12,172.34,172.26,5.803]
[1748496254557,5.802,172.3,172.26,5.803]
[1748496254860,5.84560088,172.3,172.26,5.84267048]
[1748496256265,5.8022,172.29,172.26,5.84267048]
[1748496257462,31.16360088,172.3,172.27,5.8025]
[1748496257865,31.16360088,172.3,172.29,5.8021]
[1748496258168,0.04360088,172.3,172.29,5.8021]
[1748496259675,0.04360088,172.3,172.27,5.8025]
[1748496259865,0.04360088,172.3,172.26,31.15967048]
[1748496260763,0.04360088,172.3,172.28,5.8024]
[1748496262370,5.84560088,172.3,172.26,31.15967048]
[1748496262967,0.04360088,172.3,172.26,31.15967048]
[1748496263973,0.04360088,172.3,172.29,5.8021]
[1748496273783,0.04360088,172.3,172.26,0.03967048]
[1748496274074,31.1,172.29,172.15,31.1]
[1748496274268,5.8042,172.23,172.18,5.8056]
[1748496274467,31.1,172.29,172.15,31.1]
[1748496274877,5.8042,172.23,172.15,31.1]
[1748496275074,0.0403326,172.21,172.17,0.0442355]
[1748496275676,0.0403326,172.21,172.17,5.8503355]
[1748496277381,5.8452326,172.21,172.17,0.0442355]
[1748496278587,0.0403326,172.21,172.17,5.8503355]
[1748496280185,5.8453326,172.21,172.17,5.8503355]
[1748496280981,5.8055,172.19,172.17,0.0442355]
[1748496281388,0.0403326,172.21,172.17,0.0442355]
[1748496282088,5.8053,172.2,172.17,0.0442355]
[1748496282281,0.0403326,172.21,172.17,0.0442355]
[1748496282786,31.4003326,172.21,172.17,0.0442355]
[1748496282986,5.8052,172.2,172.17,0.0442355]
[1748496283181,31.4003326,172.21,172.17,0.0442355]
[1748496283387,37.2052326,172.21,172.17,0.0442355]
[1748496284891,37.2052326,172.21,172.17,5.8501355]
[1748496286194,5.8052,172.2,172.17,5.8501355]
[1748496287087,5.8052,172.2,172.17,0.0442355]
[1748496288093,5.8055,172.19,172.17,0.0442355]
[1748496288290,31.4003326,172.21,172.17,0.0442355]
[1748496289288,5.8054,172.2,172.17,0.0442355]
[1748496290283,37.2051326,172.21,172.17,5.8501355]
[1748496290688,37.2051326,172.21,172.18,5.8058]
[1748496290991,31.4003326,172.21,172.18,5.8058]
[1748496291893,37.2052326,172.21,172.18,5.8058]
[1748496292594,31.4003326,172.21,172.18,5.8058]
[1748496293887,37.2052326,172.21,172.18,5.8058]
[1748496294285,31.4003326,172.21,172.17,0.0442355]
[1748496294494,5.05922394,172.19,172.07,33.2664]
[1748496294802,7.10172394,172.2,172.07,33.2664]
[1748496294998,5.8064,172.17,172.11,5.8082]
[1748496295192,31.38,172.17,172.11,5.8082]
[1748496295395,0.04463601,172.16,172.12,0.03777978]
[1748496296388,0.04463601,172.16,172.12,5.84557978]
[1748496297398,5.85113601,172.16,172.12,0.03777978]
[1748496297603,0.04463601,172.16,172.12,0.03777978]
[1748496297995,0.04463601,172.16,172.12,5.84557978]
[1748496298995,0.04463601,172.16,172.12,0.03777978]
[1748496299698,5.85123601,172.16,172.12,0.03777978]
[1748496300995,0.04463601,172.16,172.12,0.03777978]
[1748496302301,5.8069,172.15,172.12,0.03777978]
[1748496303503,5.8072,172.14,172.12,0.03777978]
[1748496304000,5.8075,172.14,172.12,0.03777978]
[1748496305802,0.04463601,172.16,172.12,0.03777978]
[1748496306597,5.8074,172.14,172.12,0.03777978]
[1748496307800,0.04463601,172.16,172.12,0.03777978]
[1748496309997,5.8075,172.13,172.12,0.03777978]
[1748496310195,37.7275,172.13,172.12,0.03777978]
[1748496323915,40.96772863,172.13,172.12,0.03777978]
[1748496327018,31.92,172.13,172.12,0.03777978]
[1748496331025,35.16022863,172.13,172.12,0.03777978]
[1748496333322,40.96772863,172.13,172.12,0.03777978]
[1748496334824,37.7275,172.13,172.12,0.03777978]
[1748496335025,40.96772863,172.13,172.12,0.03777978]
[1748496335728,37.7275,172.13,172.12,0.03777978]
[1748496335925,40.96772863,172.13,172.12,0.03777978]
[1748496337227,31.92,172.13,172.12,0.03777978]
[1748496338433,37.7275,172.13,172.12,0.03777978]
[1748496339635,31.92,172.13,172.12,0.03777978]
[1748496356450,40.18722863,172.15,172.12,0.03777978]
[1748496358751,36.947,172.15,172.12,0.03777978]
[1748496358953,40.18722863,172.15,172.12,0.03777978]
[1748496364065,36.947,172.15,172.12,5.84557978]
[1748496364260,34.38022863,172.15,172.12,5.84557978]
[1748496365658,31.14,172.15,172.12,5.84557978]
[1748496365955,40.18712863,172.15,172.12,5.84557978]
[1748496367552,31.14,172.15,172.13,5.8073]
[1748496368752,31.14,172.15,172.14,5.8072]
[1748496370153,31.14,172.15,172.13,5.8074]
[1748496370554,31.14,172.15,172.12,0.03777978]
[1748496370759,5.8072,172.14,172.12,0.03777978]
[1748496371058,34.38022863,172.15,172.12,0.03777978]
[1748496372261,5.8072,172.14,172.12,0.03777978]
[1748496373762,31.14,172.15,172.13,5.8075]
[1748496374061,31.14,172.15,172.12,0.03777978]
[1748496374663,31.14,172.15,172.12,5.84537978]
[1748496376959,31.14,172.15,172.13,5.8075]
[1748496380863,31.14,172.15,172.14,5.8072]
[1748496382461,31.14,172.15,172.12,0.03777978]
[1748496382772,31.14,172.15,172.13,5.8074]
[1748496384670,31.14,172.15,172.14,5.8072]
[1748496387970,31.14,172.15,172.12,5.84557978]
[1748496388971,36.9469,172.15,172.12,5.84557978]
[1748496389360,31.14,172.15,172.12,5.84557978]
[1748496389660,31.14,172.15,172.13,5.8075]
[1748496392667,31.14,172.15,172.12,5.84567978]
[1748496392875,36.9469,172.15,172.12,5.84567978]
[1748496393576,31.14,172.15,172.12,5.84567978]
[1748496395775,36.9469,172.15,172.12,5.84567978]
[1748496396775,31.14,172.15,172.12,5.84567978]
[1748496397271,31.14,172.15,172.13,5.8075]
[1748496402381,36.9469,172.15,172.12,5.84547978]
[1748496406185,31.14,172.15,172.12,5.84547978]
[1748496406581,31.14,172.15,172.13,5.8074]
[1748496410087,31.14,172.15,172.12,5.84547978]
[1748496411089,31.14,172.15,172.13,5.8074]
[1748496414297,31.14,172.15,172.12,5.84547978]
[1748496414486,36.9469,172.15,172.12,5.84547978]
[1748496414891,31.14,172.15,172.12,5.84547978]
[1748496415493,31.14,172.15,172.13,5.8074]
[1748496417794,31.14,172.15,172.14,5.8072]
[1748496419693,0.04463601,172.16,172.14,5.8072]
[1748496423405,5.84463601,172.16,171.98,31.08]
[1748496423594,3.24022863,172.06,171.96,2.0203]
[1748496423796,36.8901,172.06,171.99,5.8122]
[1748496423996,3.24022863,172.05,171.99,5.8122]
[1748496424289,3.24022863,172.05,171.98,3.24022863]
[1748496424497,0.04228195,172.03,172.0,0.04254038]
[1748496425897,3.28251058,172.03,172.0,0.04254038]
[1748496426199,3.24022863,172.01,171.88,3.24022863]
[1748496426498,3.24022863,171.97,171.88,9.12192863]
[1748496426699,31.08,171.98,171.9,3.24022863]
[1748496426898,31.08,171.98,171.92,3.24022863]
[1748496427100,0.04416333,171.97,171.95,5.8133]
[1748496429103,0.04416333,171.97,171.96,5.8132]
[1748496433702,31.6,172.01,172.0,5.8119]
[1748496434598,4.87784,172.06,171.98,3.24022863]
[1748496434800,0.04089679,172.04,172.0,3.28215838]
[1748496435003,0.04089679,172.04,172.03,5.8109]
[1748496435004,0.04125293,172.04,172.03,5.8109]
[1748496436708,0.04125293,172.04,172.0,0.03834726]
[1748496437412,0.04125293,172.04,172.01,5.8115]
[1748496437709,0.04125293,172.04,172.0,0.03834726]
[1748496438613,0.04125293,172.04,172.01,5.8115]
[1748496443606,0.04125293,172.04,172.02,5.8111]
[1748496444607,0.04125293,172.04,172.0,0.03834726]
[1748496444608,0.04125293,172.04,172.03,5.8109]
[1748496445208,0.04125293,172.04,172.0,0.03834726]
[1748496445518,0.04125293,172.04,171.83,34.22]
[1748496445519,5.86125293,172.04,171.83,34.22]
[1748496445713,5.8132,171.97,171.88,5.8158]
[1748496445907,40.0332,171.97,171.88,5.8158]
[1748496446311,5.8133,171.96,171.88,5.8158]
[1748496446511,0.04140048,171.94,171.91,0.03824314]
[1748496449217,5.85540048,171.94,171.91,0.03824314]
[1748496450816,0.04140048,171.94,171.91,0.03824314]
[1748496453314,5.8142,171.93,171.91,0.03824314]
[1748496453514,0.04140048,171.94,171.91,0.03824314]
[1748496453914,5.85530048,171.94,171.91,0.03824314]
[1748496457125,5.8142,171.93,171.91,0.03824314]
[1748496457423,0.04140048,171.94,171.91,0.03824314]
[1748496458620,5.85550048,171.94,171.91,0.03824314]
[1748496460727,5.8143,171.93,171.91,0.03824314]
[1748496463035,5.85540048,171.94,171.91,0.03824314]
[1748496464730,5.8142,171.93,171.91,0.03824314]
[1748496466427,0.04140048,171.94,171.91,5.85314314]
[1748496466629,0.04140048,171.94,171.91,0.03824314]
[1748496467030,5.85550048,171.94,171.91,0.03824314]
[1748496468329,0.04140048,171.94,171.91,5.85314314]
[1748496469032,0.04140048,171.94,171.92,5.8144]
[1748496472837,0.04140048,171.94,171.93,5.8142]
[1748496474038,0.04140048,171.94,171.91,0.03824314]
[1748496476038,0.04140048,171.94,171.92,5.8144]
[1748496477233,0.04140048,171.94,171.93,5.8142]
[1748496489143,34.68,172.01,171.97,5.8128]
[1748496489345,5.8121,172.0,171.97,5.8128]
[1748496489653,34.68,172.01,171.98,5.8125]
[1748496489948,502.4,172.05,171.92,3.9477]
[1748496489949,537.08,172.05,171.93,34.68]
[1748496490248,0.03922438,172.01,172.0,5.8119]
[1748496491643,34.68,172.05,171.99,0.03994735]
[1748496491844,4.87784,172.06,171.99,3.89214735]
[1748496492555,0.04001665,172.04,171.99,3.89214735]
[1748496492853,0.04001665,172.04,172.03,5.8106]
[1748496496153,1.665e-05,172.04,172.03,5.8106]
[1748496496353,4.87784,172.06,172.05,5.8102]
[1748496498655,4.87784,172.06,172.04,0.03971798]
[1748496499855,5.8102,172.05,172.04,0.03971798]
[1748496504655,10.68784,172.06,172.04,0.03971798]
[1748496507762,4.87784,172.06,172.04,0.03971798]
[1748496510159,4.87784,172.06,172.05,5.8102]
[1748496539880,4.87784,172.06,172.04,5.85011798]
[1748496540591,4.87784,172.06,172.05,5.8102]
[1748496549295,36.598,172.12,172.04,35.5011027]
[1748496549494,34.66,172.12,172.08,3.24138472]
[1748496549691,36.1466,172.16,172.08,3.24138472]
[1748496549894,5.8069,172.15,172.12,5.8076]
[1748496550299,5.84351803,172.15,172.12,5.8486777]
[1748496550599,5.84351803,172.15,172.12,0.0410777]
[1748496552705,5.8072,172.14,172.12,0.0410777]
[1748496554806,0.03661803,172.15,172.12,0.0410777]
[1748496555002,0.03661803,172.15,171.95,501.98]
[1748496555003,12.94856476,172.15,172.0,1.9991]
[1748496555194,7.11194673,172.15,172.0,1.9991]
[1748496555395,5.8089,172.09,172.0,1.9991]
[1748496555805,32.2,172.1,172.0,1.9991]
[1748496556110,0.03834271,172.06,172.03,0.03787212]
[1748496557508,0.03834271,172.06,172.05,5.8102]
[1748496558716,0.03834271,172.06,172.03,0.03787212]
[1748496560011,0.03834271,172.06,172.04,5.8103]
[1748496560912,0.03834271,172.06,172.05,5.8102]
[1748496564914,32.2,172.14,172.03,32.25787212]
[1748496565114,32.2,172.14,172.03,32.22]
[1748496565522,32.2,172.14,172.06,5.8096]
[1748496565723,32.2,172.14,172.03,32.22]
[1748496566018,5.8094,172.08,172.07,0.0431762]
[1748496566209,32.24293444,172.1,172.04,5.8103]
[1748496566411,1.9976,172.09,172.04,5.8103]
[1748496567117,5.8096,172.07,172.05,0.04162293]
[1748496567422,1.9976,172.09,172.05,0.04162293]
[1748496568414,3.9077,172.09,172.05,0.04162293]
[1748496569925,5.8098,172.06,172.05,0.04162293]
[1748496573823,5.8113,172.02,171.94,32.22]
[1748496574129,5.8113,172.02,171.98,5.8123]
[1748496574829,5.84931955,172.02,171.98,5.84986462]
[1748496576127,0.03801955,172.02,171.99,5.8122]
[1748496577017,5.84921955,172.02,171.98,5.85006462]
[1748496577515,0.03801955,172.02,171.98,0.03756462]
[1748496577715,0.03801955,172.02,171.99,5.8122]
[1748496578126,0.03801955,172.02,171.98,0.03756462]
[1748496578520,0.03801955,172.02,171.99,5.8121]
[1748496579825,0.03801955,172.02,172.0,5.8117]
[1748496582120,0.03801955,172.02,172.01,5.8115]
[1748496593540,32.22,172.06,172.04,5.8105]
[1748496593734,1.9976,172.09,171.99,37.2823]
[1748496593937,33.26,172.11,172.01,5.06214673]
[1748496594140,33.26,172.12,172.02,2.013]
[1748496594334,33.26,172.12,172.06,5.8095]
[1748496594535,5.8085,172.1,172.07,0.04139898]
[1748496595642,0.04460171,172.11,172.07,0.04139898]
[1748496596641,0.04460171,172.11,172.08,5.8088]
[1748496596842,0.04460171,172.11,172.07,0.04139898]
[1748496598843,0.04460171,172.11,172.09,5.8088]
[1748496600337,0.04460171,172.11,172.07,0.04139898]
[1748496600533,5.8092,172.08,172.07,0.04139898]
[1748496600737,0.04460171,172.11,172.0,35.1804]
[1748496600937,38.32214673,172.12,172.0,35.1804]
[1748496601143,5.8105,172.05,172.0,33.26]
[1748496601747,0.03766039,172.04,172.01,0.03868176]
[1748496602446,0.03766039,172.04,172.01,5.84988176]
[1748496603547,0.03766039,172.04,172.02,5.8112]
[1748496606439,0.03766039,172.04,172.03,5.8108]
[1748496610346,0.03766039,172.04,172.02,5.8111]
[1748496613452,0.03766039,172.04,172.01,0.03868176]
[1748496614155,5.8111,172.03,172.01,0.03868176]
[1748496615655,5.84826039,172.04,172.01,0.03868176]
[1748496617261,5.8109,172.03,172.01,0.03868176]
[1748496617466,0.03766039,172.04,172.01,0.03868176]
[1748496618759,5.8112,172.02,172.01,0.03868176]
[1748496619168,0.03766039,172.04,171.96,32.38]
[1748496619367,0.03766039,172.04,171.92,507.10214673]
[1748496619368,0.03766039,172.04,171.92,534.42]
[1748496619561,7.13924673,172.06,171.92,32.38]
[1748496619758,7.13924673,172.06,171.95,5.8135]
[1748496620158,0.04330484,172.02,171.99,0.03892445]
[1748496620357,32.38,172.01,171.99,0.03892445]
[1748496620665,5.8119,172.0,171.99,0.03892445]
[1748496621057,32.38,172.01,171.99,0.03892445]
[1748496623069,38.1917,172.01,171.99,0.03892445]
[1748496623767,5.8119,172.0,171.99,0.03892445]
[1748496640986,38.1917,172.01,171.99,0.03892445]
[1748496641288,32.38,172.01,171.99,0.03892445]
[1748496643286,38.1918,172.01,171.99,0.03892445]
[1748496643986,5.8118,172.0,171.99,0.03892445]
[1748496646992,38.1915,172.01,171.99,0.03892445]
[1748496648294,5.8118,172.0,171.99,0.03892445]
[1748496648794,32.38,172.01,171.99,0.03892445]
[1748496649486,38.1917,172.01,171.99,0.03892445]
[1748496651094,5.8118,172.0,171.99,0.03892445]
[1748496653090,38.1916,172.01,171.99,0.03892445]
[1748496654302,5.8118,172.0,171.99,0.03892445]
[1748496654597,32.38,172.01,171.99,0.03892445]
[1748496654790,38.1918,172.01,171.99,0.03892445]
[1748496656998,32.38,172.01,171.99,0.03892445]
[1748496657194,0.04330484,172.02,171.99,0.03892445]
[1748496657398,32.2,172.08,171.99,0.03892445]
[1748496657597,38.0094,172.08,172.04,5.8103]
[1748496658288,32.2,172.08,172.04,0.03914635]
[1748496658592,32.24055408,172.08,172.04,0.03914635]
[1748496658795,0.04055408,172.08,172.07,5.8095]
[1748496660492,32.2,172.12,172.09,5.8085]
[1748496661491,32.23996525,172.12,172.1,5.8083]
[1748496662298,32.23996525,172.12,172.09,5.85120094]
[1748496663002,38.04786525,172.12,172.09,5.85120094]
[1748496665496,0.03996525,172.12,172.1,5.8082]
[1748496666604,0.03996525,172.12,172.09,5.85120094]
[1748496669394,0.03996525,172.12,172.1,5.8084]
[1748496669706,0.03996525,172.12,172.09,0.04250094]
[1748496670005,0.03996525,172.12,172.1,5.8084]
[1748496670202,0.03996525,172.12,172.09,0.04250094]
[1748496670710,31.68,172.16,172.09,5.10464767]
[1748496671006,31.68,172.2,172.1,2.032]
[1748496671199,31.68,172.2,172.13,5.8074]
[1748496671394,5.8063,172.17,172.1,2.032]
[1748496671600,31.68,172.2,172.1,2.032]
[1748496671908,0.0376688,172.17,172.13,0.03919628]
[1748496672207,5.8065,172.16,172.13,0.03919628]
[1748496673005,5.8068,172.15,172.13,0.03919628]
[1748496673209,0.0376688,172.17,172.13,0.03919628]
[1748496674106,5.8071,172.14,172.13,0.03919628]
[1748496674402,0.0376688,172.17,172.13,0.03919628]
[1748496674802,0.0376688,172.17,172.13,5.84629628]
[1748496675003,0.0376688,172.17,172.13,0.03919628]
[1748496675205,0.0376688,172.17,172.14,5.8068]
[1748496675410,0.0376688,172.17,172.13,0.03919628]
[1748496676005,0.0376688,172.17,172.15,5.8066]
[1748496676507,0.0376688,172.17,172.13,0.03919628]
[1748496676900,0.0376688,172.17,172.13,5.84629628]
[1748496677107,0.0376688,172.17,172.13,0.03919628]
[1748496677411,0.0376688,172.17,172.14,5.807]
[1748496679302,0.0376688,172.17,172.15,5.8067]
[1748496679805,0.0376688,172.17,172.13,0.03919628]
[1748496680007,0.0376688,172.17,172.14,5.8069]
[1748496681303,0.0376688,172.17,172.13,0.03919628]
[1748496682706,0.0376688,172.17,172.16,5.8064]
[1748496683205,31.66,172.24,172.13,0.03919628]
[1748496683397,31.66,172.24,172.12,3.9423]
[1748496684113,5.8063,172.17,172.16,0.03912572]
[1748496689113,5.8058,172.18,172.16,0.03912572]
[1748496690806,5.8061,172.17,172.16,0.03912572]
[1748496698731,5.8061,172.17,172.16,0.00682543]
[1748496701827,31.7044721,172.2,172.16,0.00682543]
[1748496702430,31.7044721,172.2,172.17,5.8058]
[1748496703533,0.0444721,172.2,172.16,0.00682543]
[1748496704639,0.0444721,172.2,172.19,5.8054]
[1748496705531,0.0444721,172.2,172.18,5.8057]
[1748496706735,0.0444721,172.2,172.17,5.806]
[1748496707532,0.0444721,172.2,172.16,0.00682543]
[1748496707739,0.0444721,172.2,172.18,5.8057]
[1748496710642,0.0444721,172.2,172.19,5.8054]
[1748496722845,533.44,172.31,172.19,31.64]
[1748496723045,533.44,172.31,172.21,5.06214673]
[1748496723347,5.8026,172.28,172.24,5.8035]
[1748496723745,0.04061695,172.28,172.24,0.04189302]
[1748496725346,5.8034,172.25,172.24,0.04189302]
[1748496726154,5.8047,172.22,172.19,31.64]
[1748496726451,5.8047,172.22,172.16,2.0757]
[1748496726639,5.8047,172.22,172.18,5.8054]
[1748496726845,5.8047,172.22,172.16,2.0757]
[1748496727248,0.03936621,172.21,172.17,0.04360933]
[1748496728855,0.03936621,172.21,172.2,5.8051]
[1748496730653,0.03936621,172.21,172.17,0.04360933]
[1748496731041,5.84446621,172.21,172.17,5.84950933]
[1748496731548,5.84446621,172.21,172.18,5.8057]
[1748496732050,0.03936621,172.21,172.17,0.04360933]
[1748496732249,0.03936621,172.21,172.2,5.8051]
[1748496738656,31.58,172.27,172.19,31.58]
[1748496739157,37.3827,172.27,172.24,5.8035]
[1748496739655,5.8031,172.26,172.24,0.04026607]
[1748496740551,31.62116642,172.27,172.24,0.04026607]
[1748496740758,0.04116642,172.27,172.24,0.04026607]
[1748496741252,0.04116642,172.27,172.26,5.8031]
[1748496743849,0.04116642,172.27,172.24,0.04026607]
[1748496745051,0.04116642,172.27,172.26,5.8031]
[1748496751065,0.04116642,172.27,172.24,0.04026607]
[1748496751454,31.62116642,172.27,172.24,0.04026607]
[1748496752661,5.8034,172.25,172.24,0.04026607]
[1748496754267,31.62116642,172.27,172.15,31.58]
[1748496754570,1.8757,172.24,172.15,31.58]
[1748496754865,5.805,172.21,172.16,5.8061]
[1748496755265,0.03973803,172.2,172.17,0.0373645]
[1748496756066,5.10188476,172.2,172.17,6.45e-05]
[1748496756261,10.90188476,172.2,172.05,1.9995]
[1748496756459,5.06214673,172.2,172.06,5.8097]
[1748496756656,5.06214673,172.2,172.03,31.88]
[1748496756657,5.06214673,172.17,172.03,31.88]
[1748496756862,35.8062,172.16,172.03,31.88]
[1748496757069,35.8062,172.16,172.03,37.6905]
[1748496757272,0.04057663,172.11,172.08,0.04180666]
[1748496757472,31.92057663,172.11,172.08,0.04180666]
[1748496758567,37.72877663,172.11,172.08,0.04180666]
[1748496759872,31.92057663,172.11,172.08,0.04180666]
[1748496761372,31.92057663,172.11,172.09,5.8088]
[1748496763482,31.92057663,172.11,172.08,5.85090666]
[1748496764479,31.92057663,172.11,172.09,5.8087]
[1748496764779,31.92057663,172.11,172.08,0.04180666]
[1748496765173,31.92057663,172.11,172.1,5.8085]
[1748496765981,0.04057663,172.11,172.1,5.8085]
[1748496769574,0.04057663,172.11,172.08,0.04180666]
[1748496769575,31.9,172.15,172.14,5.8071]
[1748496769771,31.9,172.19,172.09,3.8682]
[1748496769983,31.9,172.19,172.1,5.06214673]
[1748496770173,37.7042,172.23,172.11,31.9]
[1748496770480,0.03869528,172.19,172.15,0.04421571]
[1748496770677,0.03869528,172.19,172.18,5.8058]
[1748496776073,0.03869528,172.19,172.15,31.94421571]
[1748496777772,0.03869528,172.19,172.17,5.8059]
[1748496780382,0.03869528,172.19,172.16,5.8064]
[1748496780885,5.84419528,172.19,172.16,5.8064]
[1748496781085,0.03869528,172.19,172.16,5.8064]
[1748496781883,0.03869528,172.19,172.15,37.75091571]
[1748496782788,5.84429528,172.19,172.15,37.75091571]
[1748496782989,0.03869528,172.19,172.15,37.75091571]
[1748496783587,0.03869528,172.19,172.15,0.04421571]
[1748496783889,31.91869528,172.19,172.15,0.04421571]
[1748496784090,5.8063,172.17,172.15,0.04421571]
[1748496785884,5.8059,172.18,172.15,0.04421571]
[1748496787083,5.8059,172.18,172.15,5.85081571]
[1748496790196,5.8059,172.18,172.15,0.04421571]
[1748496790401,5.8062,172.17,172.15,0.04421571]
[1748496792004,5.8059,172.18,172.15,0.04421571]
[1748496792206,5.8059,172.18,172.15,5.85101571]
[1748496793315,5.8059,172.18,172.15,0.04421571]
[1748496793716,5.06214673,172.18,172.05,32.28]
[1748496793908,4.0068,172.17,172.05,32.28]
[1748496794217,5.8085,172.1,172.05,32.28]
[1748496794613,5.8085,172.1,172.06,5.8097]
[1748496794811,5.8091,172.09,172.06,0.04216877]
[1748496795317,5.8092,172.08,172.06,0.04216877]
[1748496795711,0.04064075,172.1,172.06,0.04216877]
[1748496797113,5.809,172.09,172.06,0.04216877]
[1748496797316,0.04064075,172.1,172.06,0.04216877]
[1748496797514,5.8094,172.08,172.06,0.04216877]
[1748496799317,0.04064075,172.1,172.06,0.04216877]
[1748496800109,5.809,172.09,172.06,0.04216877]